bitfinex/quotes_BTCUSD_20250529
["timestamp","ask_amount","ask_price","bid_price","bid_amount"]
[1748534829129,0.81051057,106860.0,106850.0,0.02250111]
[1748534829345,0.81251057,106860.0,106850.0,0.02250111]
[1748534829590,0.84940666,106860.0,106850.0,0.02250111]
[1748534829809,0.84978945,106860.0,106850.0,0.02250111]
[1748534830029,0.84255033,106860.0,106850.0,0.02250111]
[1748534830237,0.84655033,106860.0,106850.0,0.02250111]
[1748534831654,0.87281771,106860.0,106850.0,0.02250111]
[1748534831881,0.84653883,106860.0,106850.0,0.02250111]
[1748534832109,0.87281771,106860.0,106850.0,0.02250111]
[1748534832558,0.84653883,106860.0,106850.0,0.02250111]
[1748534832777,0.75070763,106860.0,106850.0,0.02250111]
[1748534832989,0.72820563,106860.0,106850.0,0.02250111]
[1748534833853,0.72920563,106860.0,106850.0,0.02250111]
[1748534835796,0.72921306,106860.0,106850.0,0.02250111]
[1748534836233,0.69591306,106860.0,106850.0,0.02250111]
[1748534836870,0.6768733,106860.0,106850.0,0.02250111]
[1748534837084,0.6453733,106860.0,106850.0,0.02250111]
[1748534837524,0.6453733,106860.0,106850.0,0.33330111]
[1748534837525,0.2055188,106860.0,106850.0,0.33330111]
[1748534837817,0.21487657,106860.0,106850.0,0.33330111]
[1748534838052,0.21087657,106860.0,106850.0,0.33330111]
[1748534838303,0.19016077,106860.0,106850.0,0.34784196]
[1748534838522,0.22023356,106860.0,106850.0,0.50509591]
[1748534838741,0.21823426,106860.0,106850.0,0.38094196]
[1748534839178,0.21623426,106860.0,106850.0,0.38094196]
[1748534839398,0.2078757,106860.0,106850.0,0.38094196]
[1748534839616,0.21823338,106860.0,106850.0,0.41184196]
[1748534839846,0.22759133,106860.0,106850.0,0.41184196]
[1748534840686,0.22759133,106860.0,106850.0,0.03704196]
[1748534840687,0.2088764,106860.0,106850.0,0.03704196]
[1748534840904,0.2088764,106860.0,106850.0,0.12458111]
[1748534841122,0.2088764,106860.0,106850.0,0.02250111]
[1748534841336,0.2088764,106860.0,106850.0,0.43478111]
[1748534842262,0.2088764,106860.0,106850.0,0.02250111]
[1748534842495,0.2088764,106860.0,106850.0,0.33242111]
[1748534843823,0.21823373,106860.0,106850.0,0.33214111]
[1748534844038,0.20887631,106860.0,106850.0,0.33214111]
[1748534844271,0.20887631,106860.0,106850.0,0.33202111]
[1748534844684,0.20887631,106860.0,106850.0,0.33194111]
[1748534844886,0.29993026,106860.0,106850.0,0.02250111]
[1748534845096,0.29993026,106860.0,106850.0,0.33190111]
[1748534846350,0.67303026,106860.0,106850.0,0.02250111]
[1748534846574,0.74713267,106860.0,106850.0,0.02250111]
[1748534846807,0.72384461,106860.0,106850.0,0.02250111]
[1748534847446,0.72284461,106860.0,106850.0,0.02250111]
[1748534847873,0.72383006,106860.0,106850.0,0.02250111]
[1748534848099,0.72683006,106860.0,106850.0,0.02250111]
[1748534848303,0.72483006,106860.0,106850.0,0.02250111]
[1748534848504,0.72883006,106860.0,106850.0,0.02250111]
[1748534849797,0.71783017,106860.0,106850.0,0.02250111]
[1748534850447,0.72883006,106860.0,106850.0,0.02250111]
[1748534850704,0.72883006,106860.0,106850.0,0.33094111]
[1748534850705,0.22267622,106860.0,106850.0,0.33094111]
[1748534850927,0.71603017,106860.0,106850.0,0.02250111]
[1748534851137,0.769112,106860.0,106850.0,0.02250111]
[1748534851359,0.80627799,106860.0,106850.0,0.01774311]
[1748534851573,0.76019605,106860.0,106850.0,0.01774311]
[1748534851780,0.76219605,106860.0,106850.0,0.01774311]
[1748534852411,0.75119616,106860.0,106850.0,0.01774311]
[1748534853722,0.75919616,106860.0,106850.0,0.01774311]
[1748534853943,1.25505598,106860.0,106850.0,0.00717273]
[1748534854159,1.25505598,106860.0,106840.0,0.01494469]
[1748534854160,0.61093701,106850.0,106840.0,0.01494469]
[1748534854380,0.61093701,106850.0,106840.0,0.01543605]
[1748534854381,0.90239432,106850.0,106840.0,0.01543605]
[1748534854610,0.88771067,106850.0,106840.0,0.01543605]
[1748534854835,0.91581567,106850.0,106840.0,0.01543605]
[1748534855064,0.85566761,106850.0,106840.0,0.01543605]
[1748534855263,1.12591948,106850.0,106840.0,0.01543605]
[1748534855469,1.13591948,106850.0,106840.0,0.01643605]
[1748534855690,1.03386774,106850.0,106840.0,0.01743605]
[1748534855957,0.8485645,106850.0,106840.0,0.01743605]
[1748534856157,0.8766695,106850.0,106840.0,0.01747605]
[1748534856581,0.8666695,106850.0,106840.0,0.01747605]
[1748534856788,0.8385645,106850.0,106840.0,0.01747605]
[1748534857241,0.7364845,106850.0,106840.0,0.01747605]
[1748534857455,0.74751289,106850.0,106840.0,0.01747605]
[1748534857903,0.84959289,106850.0,106840.0,0.01747605]
[1748534860050,0.84959289,106850.0,106810.0,0.3245011]
[1748534860051,0.61025331,106820.0,106810.0,0.0155811]
[1748534860287,0.71233331,106820.0,106810.0,0.0155811]
[1748534860506,0.82324198,106820.0,106810.0,0.0155811]
[1748534860938,0.66477274,106820.0,106810.0,0.00809299]
[1748534861158,0.69597274,106820.0,106810.0,0.00809299]
[1748534861369,0.67377274,106820.0,106810.0,0.00909299]
[1748534861592,0.67377274,106820.0,106810.0,0.00809299]
[1748534861798,0.67377274,106820.0,106810.0,0.00909299]
[1748534862015,0.69777274,106820.0,106810.0,0.01009299]
[1748534862227,0.76107274,106820.0,106810.0,0.01009299]
[1748534864067,0.77210314,106820.0,106810.0,0.01009299]
[1748534865815,0.87422314,106820.0,106810.0,0.01009299]
[1748534868597,0.75224842,106820.0,106810.0,0.01009299]
[1748534868807,0.87235771,106820.0,106810.0,0.01009299]
[1748534869078,0.87235771,106820.0,106810.0,0.00260247]
[1748534869313,1.05401613,106820.0,106810.0,0.00260247]
[1748534869526,0.60051062,106810.0,106800.0,0.01666406]
[1748534869751,0.71135541,106810.0,106800.0,0.01666406]
[1748534869959,0.67925541,106810.0,106800.0,0.01666406]
[1748534870168,0.77957541,106810.0,106800.0,0.01666406]
[1748534870636,0.77957541,106810.0,106800.0,0.01866406]
[1748534870847,0.64794792,106810.0,106800.0,0.01866406]
[1748534871058,0.63695232,106810.0,106800.0,0.01866406]
[1748534871472,0.63795232,106810.0,106800.0,0.02166406]
[1748534875070,0.54689837,106810.0,106800.0,0.08456406]
[1748534875280,0.54689837,106810.0,106800.0,0.05396406]
[1748534875708,0.54689837,106810.0,106800.0,0.02166406]
[1748534875919,0.63795232,106810.0,106800.0,0.02166406]
[1748534876344,0.64894792,106810.0,106800.0,0.02166406]
[1748534877698,0.71234792,106810.0,106800.0,0.02166406]
[1748534878149,0.81637311,106810.0,106800.0,0.02166406]
[1748534879038,0.78517311,106810.0,106800.0,0.02166406]
[1748534880777,0.81760305,106810.0,106800.0,0.02166406]
[1748534881676,0.80751168,106810.0,106800.0,0.02166406]
[1748534881884,0.82917568,106810.0,106800.0,0.02166406]
[1748534882117,0.19662903,106800.0,106790.0,0.01597552]
[1748534882368,0.20766402,106800.0,106790.0,0.02472044]
[1748534882588,0.5564892,106800.0,106790.0,0.02472044]
[1748534882807,0.64754315,106800.0,106790.0,0.02472557]
[1748534883228,0.66225647,106800.0,106790.0,0.02472599]
[1748534883483,0.66325647,106800.0,106790.0,0.02023396]
[1748534883741,0.72556021,106800.0,106790.0,0.02023396]
[1748534883970,0.71452522,106800.0,106790.0,0.00599152]
[1748534884210,0.19664744,106790.0,106780.0,4e-05]
[1748534884423,0.29653031,106790.0,106780.0,4e-05]
[1748534884652,0.30756574,106790.0,106780.0,0.00879776]
[1748534884881,0.30756574,106790.0,106780.0,4e-05]
[1748534885090,0.64756574,106790.0,106780.0,4e-05]
[1748534886362,0.64756574,106790.0,106780.0,0.00204]
[1748534886575,0.64856574,106790.0,106780.0,0.00204]
[1748534887214,0.64956574,106790.0,106780.0,0.00304]
[1748534887422,0.75620554,106790.0,106780.0,0.01179929]
[1748534887629,0.77091886,106790.0,106780.0,0.00304]
[1748534887838,0.75988311,106790.0,106780.0,0.00304]
[1748534888282,0.79238311,106790.0,106780.0,0.00304]
[1748534889374,0.79239046,106790.0,106780.0,0.00304]
[1748534890548,0.75989046,106790.0,106780.0,0.00304]
[1748534891880,0.79146186,106790.0,106780.0,0.00304]
[1748534892098,0.79146186,106790.0,106770.0,4e-05]
[1748534892099,0.53666586,106780.0,106770.0,4e-05]
[1748534892317,0.71257579,106780.0,106770.0,4e-05]
[1748534892793,1.20946548,106780.0,106770.0,4e-05]
[1748534893024,1.10302513,106770.0,106760.0,0.03672084]
[1748534893242,1.12185873,106770.0,106760.0,0.03672084]
[1748534893459,1.27321163,106770.0,106760.0,0.03672084]
[1748534893908,1.30133763,106770.0,106760.0,0.03672084]
[1748534894334,1.32039868,106770.0,106760.0,0.03672084]
[1748534894973,1.34039868,106770.0,106760.0,0.03672084]
[1748534895415,1.36039868,106770.0,106760.0,0.03672084]
[1748534896064,1.27555888,106770.0,106760.0,0.03672084]
[1748534896310,1.38929105,106770.0,106760.0,0.03672084]
[1748534896525,0.90139105,106770.0,106760.0,0.03672084]
[1748534896782,0.80936505,106770.0,106760.0,0.03672084]
[1748534897212,0.80568912,106770.0,106760.0,0.03672084]
[1748534897908,0.18738873,106730.0,106720.0,0.14476817]
[1748534898110,0.18738873,106730.0,106720.0,0.23816437]
[1748534898331,0.18738873,106730.0,106720.0,0.23682212]
[1748534898530,0.19675737,106730.0,106720.0,0.24619243]
[1748534898995,0.20610697,106740.0,106720.0,0.42422841]
[1748534899197,0.001,106730.0,106720.0,0.44296894]
[1748534899404,0.19775746,106730.0,106720.0,0.23682212]
[1748534899562,0.19775737,106730.0,106720.0,0.23682212]
[1748534900367,0.19675737,106730.0,106720.0,0.24619243]
[1748534900579,0.22533612,106740.0,106730.0,0.01454085]
[1748534900818,0.22633682,106740.0,106730.0,0.01688294]
[1748534901013,0.22633682,106740.0,106730.0,0.38616294]
[1748534901233,0.20659936,106740.0,106730.0,0.38382085]
[1748534901446,0.21596765,106740.0,106730.0,0.38382085]
[1748534901649,0.22533603,106740.0,106730.0,0.38382085]
[1748534901859,0.20659936,106740.0,106730.0,0.38382085]
[1748534902078,0.18786339,106740.0,106730.0,0.4748748]
[1748534902271,0.20859909,106740.0,106730.0,0.4768748]
[1748534902418,0.22733524,106740.0,106730.0,0.38582085]
[1748534902621,0.22733568,106740.0,106730.0,0.38582085]
[1748534902825,0.21796748,106740.0,106730.0,0.38582085]
[1748534903227,0.18986339,106740.0,106730.0,0.38582085]
[1748534903471,0.19823124,106740.0,106730.0,0.38482085]
[1748534903669,0.20759927,106740.0,106730.0,0.38482085]
[1748534904233,0.18986339,106740.0,106730.0,0.58357901]
[1748534904468,0.19923133,106740.0,106730.0,0.4778748]
[1748534904678,0.19923133,106740.0,106730.0,0.0343]
[1748534904679,0.28343969,106740.0,106730.0,0.0343]
[1748534904923,0.71449364,106740.0,106730.0,0.003]
[1748534907032,0.71907132,106740.0,106730.0,0.003]
[1748534907234,1.28138982,106740.0,106730.0,0.003]
[1748534907904,1.29241069,106740.0,106730.0,0.003]
[1748534908358,1.29141069,106740.0,106730.0,0.002]
[1748534908570,0.54614629,106720.0,106710.0,0.02233612]
[1748534908815,0.54614629,106720.0,106710.0,0.40835974]
[1748534909077,0.20614629,106720.0,106710.0,0.40601697]
[1748534909285,0.20614629,106720.0,106710.0,0.40605697]
[1748534909509,0.20614256,106730.0,106720.0,0.0307]
[1748534909717,0.21551234,106730.0,106720.0,0.0612]
[1748534910752,0.21651234,106730.0,106720.0,0.0622]
[1748534911113,0.20714256,106730.0,106720.0,0.07674085]
[1748534911341,0.19777348,106730.0,106720.0,0.38278085]
[1748534911493,0.20814247,106730.0,106720.0,0.38278085]
[1748534911711,0.19877348,106730.0,106720.0,0.38278085]
[1748534911942,0.002,106730.0,106720.0,0.67998153]
[1748534912173,0.20608819,106750.0,106730.0,0.20192958]
[1748534912394,0.56482328,106750.0,106740.0,0.38538085]
[1748534912656,0.22482328,106750.0,106740.0,0.38538085]
[1748534912827,0.21545604,106750.0,106740.0,0.33854]
[1748534913021,0.19673903,106740.0,106730.0,0.26716701]
[1748534913229,0.20610706,106740.0,106730.0,0.57320701]
[1748534913482,0.22484356,106740.0,106730.0,0.57424701]
[1748534913603,0.21547518,106740.0,106730.0,0.57424701]
[1748534913810,0.19673903,106740.0,106730.0,0.57324701]
[1748534914019,0.20610706,106740.0,106730.0,0.57324701]
[1748534914251,0.2268439,106740.0,106730.0,0.26920701]
[1748534914477,0.22684382,106740.0,106730.0,0.57524701]
[1748534914678,0.22684373,106740.0,106730.0,0.57524701]
[1748534915083,0.20810785,106740.0,106730.0,0.00253221]
[1748534915342,0.61060785,106740.0,106730.0,0.00253221]
[1748534915573,0.71049961,106740.0,106730.0,0.00253221]
[1748534915761,0.64799961,106740.0,106730.0,0.00253221]
[1748534916315,0.64800065,106740.0,106730.0,0.00253221]
[1748534916723,0.64800309,106740.0,106730.0,0.30853221]
[1748534916887,0.67940309,106740.0,106730.0,0.30853221]
[1748534917496,0.71060309,106740.0,106730.0,0.00253221]
[1748534917835,0.82073471,106740.0,106730.0,0.00253221]
[1748534920697,0.82237526,106740.0,106730.0,0.00053221]
[1748534920928,0.82237526,106740.0,106730.0,0.00153221]
[1748534921152,0.81768309,106740.0,106730.0,0.002]
[1748534921357,0.87209597,106740.0,106730.0,0.002]
[1748534922076,0.79841992,106740.0,106730.0,0.001]
[1748534922284,1.15181709,106740.0,106730.0,0.001]
[1748534922722,0.74673709,106740.0,106730.0,0.001]
[1748534923186,1.15181709,106740.0,106730.0,0.001]
[1748534923415,1.17752989,106740.0,106730.0,0.001]
[1748534923639,1.19652989,106740.0,106730.0,0.002]
[1748534923899,1.17081709,106740.0,106730.0,0.001]
[1748534924108,1.20652988,106740.0,106730.0,0.002]
[1748534924751,0.80144988,106740.0,106730.0,0.002]
[1748534924964,0.90052988,106740.0,106730.0,0.002]
[1748534925180,0.97729523,106740.0,106730.0,0.002]
[1748534925392,0.61015799,106730.0,106720.0,4e-05]
[1748534925626,0.72473434,106730.0,106720.0,4e-05]
[1748534926045,0.71003629,106730.0,106720.0,4e-05]
[1748534926252,0.73312829,106730.0,106720.0,4e-05]
[1748534926461,0.74781935,106730.0,106720.0,4e-05]
[1748534926667,0.74412829,106730.0,106720.0,0.00104]
[1748534926883,0.75412829,106730.0,106720.0,0.00204]
[1748534927321,0.76866914,106730.0,106720.0,0.00204]
[1748534927764,0.76366914,106730.0,106720.0,0.00204]
[1748534928441,0.75366914,106730.0,106720.0,0.00204]
[1748534928651,0.77907309,106730.0,106720.0,0.00204]
[1748534929277,0.59777642,106720.0,106710.0,0.02237612]
[1748534929512,1.02819557,106720.0,106710.0,0.02237612]
[1748534930366,1.02819557,106720.0,106710.0,0.02337612]
[1748534930575,1.04319557,106720.0,106710.0,0.02337612]
[1748534930809,1.04319557,106720.0,106710.0,0.02237612]
[1748534931028,0.74419557,106720.0,106710.0,0.02237612]
[1748534931243,1.13469472,106720.0,106710.0,0.02237612]
[1748534931449,1.15669472,106720.0,106710.0,0.02237612]
[1748534931666,0.76632493,106720.0,106710.0,0.02237612]
[1748534931869,1.17132493,106720.0,106710.0,0.02237612]
[1748534932110,0.75632493,106720.0,106710.0,0.02237612]
[1748534932339,1.35422827,106720.0,106710.0,0.02237612]
[1748534932766,0.87045806,106720.0,106710.0,0.02237612]
[1748534932978,0.92755472,106720.0,106710.0,0.02237612]
[1748534933228,0.92753366,106720.0,106710.0,0.02237612]
[1748534933470,1.30013366,106720.0,106710.0,0.02237612]
[1748534933711,1.34273778,106720.0,106710.0,0.02237612]
[1748534933982,1.435249,106720.0,106710.0,0.02237612]
[1748534934209,1.44991921,106720.0,106710.0,0.02237612]
[1748534934423,1.08889486,106710.0,106700.0,0.0231322]
[1748534934681,1.19975637,106710.0,106700.0,0.0231322]
[1748534934889,1.61930658,106710.0,106700.0,0.0231322]
[1748534935717,1.63824942,106710.0,106700.0,0.0231322]
[1748534936165,1.65524942,106710.0,106700.0,0.0231322]
[1748534936370,1.65524942,106710.0,106690.0,0.00872046]
[1748534936371,1.08881331,106700.0,106690.0,0.00872046]
[1748534936577,1.50567011,106700.0,106690.0,0.00872046]
[1748534936783,1.50567011,106700.0,106690.0,0.00122132]
[1748534937228,0.26093176,106690.0,106680.0,0.00585538]
[1748534937432,0.459789,106690.0,106680.0,0.00085538]
[1748534937637,0.53685021,106680.0,106670.0,0.00060378]
[1748534937873,0.62790416,106680.0,106670.0,0.00060378]
[1748534938384,0.63670745,106680.0,106670.0,0.00064378]
[1748534938638,0.69890745,106680.0,106670.0,0.00064378]
[1748534939125,1.00490745,106680.0,106670.0,0.00064378]
[1748534939354,0.73531096,106680.0,106670.0,0.00064378]
[1748534939588,1.1293514,106680.0,106670.0,0.00064378]
[1748534939830,1.11394745,106680.0,106670.0,0.00064378]
[1748534940064,0.84252297,106680.0,106670.0,0.00064378]
[1748534940298,1.15852297,106680.0,106670.0,0.00064378]
[1748534940548,0.74453387,106680.0,106670.0,0.00064378]
[1748534940775,0.67233387,106680.0,106670.0,0.00064378]
[1748534941015,0.79136054,106680.0,106670.0,0.00064378]
[1748534942063,0.67232054,106680.0,106670.0,0.00064378]
[1748534942277,0.79036054,106680.0,106670.0,0.00064378]
[1748534942486,0.72072054,106680.0,106670.0,0.00064378]
[1748534942697,0.69032054,106680.0,106670.0,0.00064378]
[1748534942968,0.35052253,106680.0,106670.0,0.00064378]
[1748534943193,0.24522377,106680.0,106670.0,0.36854378]
[1748534943657,0.24522377,106680.0,106670.0,0.46758378]
[1748534943658,0.24522324,106680.0,106670.0,0.46758378]
[1748534943872,0.24522368,106680.0,106670.0,0.46758378]
[1748534944088,0.23522368,106680.0,106670.0,0.46758378]
[1748534944299,0.22584977,106680.0,106670.0,0.46758378]
[1748534944522,0.25397036,106680.0,106670.0,0.46758378]
[1748534944733,0.23522324,106680.0,106670.0,0.46758378]
[1748534944940,0.22584977,106680.0,106670.0,0.46758378]
[1748534945166,0.22584977,106680.0,106670.0,1.06294134]
[1748534945390,0.21647656,106680.0,106670.0,0.47695831]
[1748534945597,0.03,106680.0,106670.0,1.3602384]
[1748534945817,0.001,106680.0,106670.0,1.37477924]
[1748534946080,0.23481276,106690.0,106680.0,0.0626]
[1748534946291,0.22544149,106690.0,106680.0,0.0626]
[1748534946509,0.2160682,106690.0,106680.0,0.06494317]
[1748534946726,0.22544106,106690.0,106680.0,0.06494317]
[1748534947390,0.22644106,106690.0,106680.0,0.06694317]
[1748534947595,0.22744106,106690.0,106680.0,0.06694317]
[1748534948015,0.21806855,106690.0,106680.0,0.06694317]
[1748534948222,0.21806855,106690.0,106680.0,0.37052]
[1748534949648,0.20869604,106690.0,106680.0,0.0646]
[1748534949897,0.20869604,106690.0,106680.0,0.37052]
[1748534950109,0.20869604,106690.0,106680.0,0.002]
[1748534950312,0.20869604,106690.0,106680.0,0.16284]
[1748534950313,0.19932345,106690.0,106680.0,0.16284]
[1748534950518,0.19932345,106690.0,106680.0,0.46872]
[1748534951200,0.20869604,106690.0,106680.0,0.46872]
[1748534951624,0.19932301,106690.0,106680.0,0.46872]
[1748534951870,0.22744061,106690.0,106680.0,0.46872]
[1748534952362,0.21806846,106690.0,106680.0,0.46872]
[1748534954213,0.2086956,106690.0,106680.0,0.46872]
[1748534954456,0.21806846,106690.0,106680.0,0.46872]
[1748534954696,0.21806837,106690.0,106680.0,0.46872]
[1748534954936,0.22744131,106690.0,106680.0,0.46872]
[1748534955640,0.20869516,106690.0,106680.0,0.46872]
[1748534955867,0.19932283,106690.0,106680.0,0.46872]
[1748534956096,0.19932283,106690.0,106680.0,0.5743148]
[1748534956097,0.20869534,106690.0,106680.0,0.5743148]
[1748534956347,0.19932283,106690.0,106680.0,0.5743148]
[1748534956584,0.0024916,106690.0,106680.0,1.13720034]
[1748534956812,0.0024916,106690.0,106680.0,1.53246713]
[1748534957040,0.0024916,106690.0,106680.0,1.54184034]
[1748534957267,0.0024916,106690.0,106680.0,1.54184043]
[1748534957742,0.0024916,106690.0,106680.0,1.54184034]
[1748534958460,0.0024916,106690.0,106680.0,1.94672034]
[1748534958699,0.0014916,106690.0,106680.0,1.94472034]
[1748534958991,0.6846766,106720.0,106680.0,1.94472034]
[1748534958992,0.19677589,106720.0,106710.0,0.04564085]
[1748534959223,0.19677589,106720.0,106710.0,0.45258329]
[1748534959457,0.19677589,106720.0,106680.0,0.43812719]
[1748534959458,0.02811752,106690.0,106680.0,0.43812719]
[1748534959702,0.20620427,106690.0,106680.0,0.43712719]
[1748534959940,0.20820427,106690.0,106680.0,0.73978719]
[1748534960243,0.20720427,106690.0,106680.0,0.73778719]
[1748534960464,0.21657721,106690.0,106680.0,0.73778719]
[1748534960739,0.1978315,106690.0,106680.0,0.42396709]
[1748534960969,0.19783123,106690.0,106680.0,0.54772104]
[1748534961197,0.19783123,106690.0,106680.0,0.95328104]
[1748534961455,0.21557598,106690.0,106680.0,0.91858104]
[1748534961676,0.22594866,106690.0,106680.0,0.61686104]
[1748534961887,0.20720444,106690.0,106680.0,0.80652709]
[1748534962107,0.20720444,106690.0,106680.0,0.40196709]
[1748534962321,0.20620444,106690.0,106680.0,0.70368709]
[1748534962531,0.20720444,106690.0,106680.0,0.70768709]
[1748534962771,0.20820444,106690.0,106680.0,0.71068709]
[1748534962997,0.20820444,106690.0,106680.0,0.70368709]
[1748534962998,0.20620444,106690.0,106680.0,0.70368709]
[1748534963219,0.19681331,106700.0,106680.0,1.0428176]
[1748534963435,0.001,106690.0,106680.0,2.43142422]
[1748534963658,0.001,106690.0,106680.0,0.86094104]
[1748534963659,0.19783114,106690.0,106680.0,0.86094104]
[1748534963872,0.22594918,106690.0,106680.0,0.52492104]
[1748534964097,0.20620461,106690.0,106680.0,0.00114719]
[1748534964310,0.16620461,106690.0,106680.0,0.30582719]
[1748534964536,0.16720461,106690.0,106680.0,0.31182719]
[1748534964957,0.15783193,106690.0,106680.0,0.00614719]
[1748534965169,0.15783193,106690.0,106680.0,0.31182719]
[1748534965400,0.15783193,106690.0,106680.0,0.00614719]
[1748534965610,0.31502808,106690.0,106680.0,0.00614719]
[1748534965824,0.31268588,106690.0,106680.0,0.30778719]
[1748534966258,0.31368588,106690.0,106680.0,0.31078719]
[1748534968881,0.65368588,106690.0,106680.0,0.00514719]
[1748534969123,1.15040842,106690.0,106680.0,0.00514719]
[1748534969971,1.14940842,106690.0,106680.0,0.00214719]
[1748534970426,1.45604842,106690.0,106680.0,0.00314719]
[1748534970638,1.46507659,106690.0,106680.0,0.00014719]
[1748534970854,0.22906867,106670.0,106660.0,0.92231818]
[1748534971066,0.35202262,106670.0,106660.0,0.92231818]
[1748534971964,0.19686867,106670.0,106660.0,0.92231818]
[1748534972202,0.20624311,106670.0,106660.0,0.92231818]
[1748534972414,0.20724311,106670.0,106660.0,1.22895818]
[1748534972608,0.19886867,106670.0,106660.0,1.22895818]
[1748534972856,0.18949414,106670.0,106660.0,1.22895818]
[1748534973134,0.21761675,106670.0,106660.0,1.26095818]
[1748534973356,0.02074808,106670.0,106660.0,2.19296709]
[1748534973572,0.02074808,106670.0,106660.0,1.60698458]
[1748534973782,0.020748,106670.0,106660.0,1.58823456]
[1748534973990,0.002,106670.0,106660.0,1.5976097]
[1748534974199,0.002,106670.0,106660.0,1.60698467]
[1748534975917,0.002,106670.0,106660.0,2.20234223]
[1748534976123,0.002,106670.0,106660.0,3.48162423]
[1748534976791,0.001,106670.0,106660.0,3.338943]
[1748534977035,0.00951956,106690.0,106680.0,0.24559698]
[1748534977036,0.01889189,106690.0,106680.0,0.24559698]
[1748534977259,0.01889189,106690.0,106680.0,0.55115698]
[1748534977472,0.03763699,106690.0,106680.0,0.54178377]
[1748534977682,0.03763699,106690.0,106680.0,0.56053045]
[1748534977887,0.0376369,106690.0,106680.0,0.56990366]
[1748534978344,0.02926431,106690.0,106680.0,0.56990366]
[1748534978764,0.03863682,106690.0,106680.0,0.56990366]
[1748534979176,0.01151956,106690.0,106680.0,0.57090366]
[1748534979420,0.02089189,106690.0,106680.0,0.57090366]
[1748534979665,0.02089189,106690.0,106680.0,1.28751517]
[1748534979666,0.00214741,106690.0,106680.0,1.28751517]
[1748534980089,0.00214741,106690.0,106680.0,0.70669846]
[1748534980329,0.00114741,106690.0,106680.0,0.70669846]
[1748534980537,0.00014741,106690.0,106680.0,2.22369002]
[1748534980751,0.00014741,106690.0,106680.0,2.22669002]
[1748534980985,0.00014741,106690.0,106680.0,2.16558702]
[1748534981202,0.00014741,106690.0,106680.0,2.16458702]
[1748534981424,0.00014741,106690.0,106680.0,2.16558702]
[1748534981647,0.00014741,106690.0,106680.0,2.91816902]
[1748534981857,0.00014741,106690.0,106680.0,2.92816902]
[1748534982296,0.00014741,106690.0,106680.0,3.26916902]
[1748534982517,0.0748398,106730.0,106720.0,1.75586258]
[1748534982733,0.08420669,106750.0,106740.0,0.21547579]
[1748534982951,0.10294072,106750.0,106740.0,0.52095579]
[1748534983205,0.08435459,106750.0,106740.0,0.52095579]
[1748534983421,0.08435459,106750.0,106740.0,0.56869664]
[1748534983422,0.0749877,106750.0,106740.0,0.56869664]
[1748534983648,0.0749877,106750.0,106740.0,0.69973664]
[1748534983865,0.0749877,106750.0,106740.0,0.79079059]
[1748534984096,0.0759877,106750.0,106740.0,0.79079059]
[1748534984325,0.0749877,106750.0,106740.0,0.79079059]
[1748534984548,0.0749877,106750.0,106740.0,0.79179059]
[1748534984762,0.0749877,106750.0,106740.0,0.79279059]
[1748534985199,0.0749877,106750.0,106740.0,0.79159059]
[1748534985418,0.0749877,106750.0,106740.0,0.79163059]
[1748534986097,0.0001479,106750.0,106740.0,1.38698815]
[1748534986318,0.0001479,106750.0,106740.0,3.08439815]
[1748534986763,0.0001479,106750.0,106740.0,6.82698815]
[1748534987004,0.0001479,106750.0,106740.0,6.83698815]
[1748534987219,0.0001479,106750.0,106740.0,6.83598815]
[1748534987436,0.0001479,106750.0,106740.0,6.83498815]
[1748534987650,0.0011479,106750.0,106740.0,6.83698815]
[1748534987874,0.0011479,106750.0,106740.0,6.83798815]
[1748534988312,0.0001479,106750.0,106740.0,6.83498815]
[1748534988553,0.0001479,106750.0,106740.0,5.44394515]
[1748534988554,0.0011479,106750.0,106740.0,5.44394515]
[1748534988766,0.0011479,106750.0,106740.0,4.24537215]
[1748534989207,0.0011479,106750.0,106740.0,3.56440394]
[1748534989429,0.01151479,106750.0,106740.0,0.33700862]
[1748534989668,0.0021479,106750.0,106740.0,0.65169656]
[1748534989892,0.0021479,106750.0,106740.0,4.79469212]
[1748534990119,0.01872561,106800.0,106790.0,0.01454085]
[1748534990346,0.01872561,106800.0,106790.0,0.32914502]
[1748534990347,0.22471902,106800.0,106790.0,0.32914502]
[1748534990570,0.04951829,106800.0,106790.0,0.61684632]
[1748534990797,0.02858114,106800.0,106790.0,0.62621014]
[1748534991073,0.00985553,106800.0,106790.0,0.64493689]
[1748534991302,0.00985588,106800.0,106790.0,0.4108348]
[1748534991559,0.2178475,106800.0,106790.0,0.5080643]
[1748534991808,0.2178475,106800.0,106790.0,0.52679255]
[1748534992054,0.22721079,106800.0,106790.0,0.51742847]
[1748534992301,0.22721079,106800.0,106790.0,0.52679255]
[1748534992559,0.23121079,106800.0,106790.0,0.53615654]
[1748534992776,0.23121079,106800.0,106790.0,0.51742847]
[1748534992989,0.23121079,106800.0,106790.0,0.31978085]
[1748534992990,0.22421079,106800.0,106790.0,0.31978085]
[1748534993196,0.2482482,106800.0,106790.0,0.31978085]
[1748534993427,0.2512482,106800.0,106790.0,0.32914502]
[1748534993865,0.02772535,106800.0,106790.0,0.62621032]
[1748534994078,0.01836259,106800.0,106790.0,0.63557387]
[1748534994299,0.02772527,106800.0,106790.0,0.63557387]
[1748534994532,0.009,106800.0,106790.0,0.63557387]
[1748534994768,0.01836259,106800.0,106790.0,0.63557387]
[1748534994994,0.02772527,106800.0,106790.0,0.63557387]
[1748534995209,0.01836268,106800.0,106790.0,0.62621032]
[1748534995434,0.009,106800.0,106790.0,0.73413387]
[1748534995654,0.009,106800.0,106790.0,2.40438364]
[1748534996126,0.009,106800.0,106790.0,1.66696964]
[1748534996376,0.003,106800.0,106790.0,1.66696964]
[1748534996611,0.01872352,106810.0,106800.0,0.22989566]
[1748534996842,0.01887131,106810.0,106800.0,0.32094961]
[1748534997076,0.01887131,106810.0,106800.0,0.33031229]
[1748534997077,0.01887122,106810.0,106800.0,0.33031229]
[1748534997312,0.00014779,106810.0,106800.0,0.33031229]
[1748534997778,0.00014779,106810.0,106800.0,0.33231229]
[1748534998499,0.00950942,106810.0,106800.0,0.33231229]
[1748534998730,0.00014779,106810.0,106800.0,0.33231229]
[1748534999189,0.00014779,106810.0,106800.0,0.35296516]
[1748535001059,0.02823337,106810.0,106800.0,0.34360275]
[1748535001301,0.02823337,106810.0,106800.0,0.35296551]
[1748535001302,0.01887131,106810.0,106800.0,0.35296551]
[1748535001519,0.01887122,106810.0,106800.0,0.34360275]
[1748535001737,0.00950942,106810.0,106800.0,0.35296543]
[1748535002160,0.01887131,106810.0,106800.0,0.35296551]
[1748535002371,0.24658245,106810.0,106800.0,0.12824767]
[1748535002576,0.27688245,106810.0,106800.0,0.43320767]
[1748535002819,0.26752056,106810.0,106800.0,0.43320767]
[1748535003038,0.2581585,106810.0,106800.0,0.30896]
[1748535003721,0.03124779,106810.0,106800.0,0.61532868]
[1748535003962,0.00014779,106810.0,106800.0,0.62050685]
[1748535004185,0.22484399,106810.0,106800.0,0.4145148]
[1748535004394,0.26752047,106810.0,106800.0,0.01854085]